fUSD/lending_fUSD_20240425
["ID","MTS","AMOUNT","RATE_DAILY","PERIOD"]
[323521130,1714066242592,-558.66,0.00010958,2]
[323521131,1714066242602,-500.0,0.00010958,2]
[323521132,1714066242611,-724.24,0.00010958,2]
[323521133,1714066242621,-500.0,0.00010958,2]
[323521134,1714066242634,-3769.61,0.00010958,2]
[323521135,1714066242648,-500.0,0.00010958,2]
[323521136,1714066242657,-500.0,0.00010958,2]
[323521137,1714066242666,-702.09,0.00010958,2]
[323521138,1714066242676,-500.0,0.00010958,2]
[323521139,1714066242686,-824.42,0.00010958,2]
[323521140,1714066242695,-500.0,0.00010958,2]
[323521141,1714066242704,-500.0,0.00010958,2]
[323521142,1714066242715,-2099.47,0.00010958,2]
[323521143,1714066242724,-1261.32,0.00010958,2]
[323521144,1714066242733,-500.0,0.00010958,2]
[323521145,1714066242742,-2376.25,0.00010958,2]
[323521146,1714066242752,-606.43,0.00010958,2]
[323521147,1714066242761,-500.0,0.00010958,2]
[323521148,1714066242774,-1105.1,0.00010958,2]
[323521149,1714066242784,-5195.18,0.00010958,2]
[323521150,1714066242793,-500.0,0.00010958,2]
[323521151,1714066242802,-500.0,0.00010958,2]
[323521152,1714066242811,-972.6,0.00010958,2]
[323521153,1714066242821,-500.0,0.00010958,2]
[323521154,1714066242831,-500.0,0.00010958,2]
[323521155,1714066242841,-1462.05,0.00010958,2]
[323521156,1714066243035,-500.0,0.00010958,2]
[323521157,1714066243045,-688.69,0.00010958,2]
[323521158,1714066243055,-652.46,0.00010958,2]
[323521159,1714066243064,-871.16,0.00010958,2]
[323521161,1714066243076,-680.41,0.00010958,2]
[323521163,1714066243086,-642.3,0.00010958,2]
[323521165,1714066243095,-500.0,0.00010958,2]
[323521167,1714066243105,-500.0,0.00010958,2]
[323521169,1714066243114,-2663.02,0.00010958,2]
[323521171,1714066243125,-500.0,0.00010958,2]
[323521174,1714066243134,-500.0,0.00010958,2]
[323521177,1714066243144,-500.0,0.00010958,2]
[323521179,1714066243153,-500.0,0.00010958,2]
[323521181,1714066243162,-500.0,0.00010958,2]
[323521183,1714066243171,-520.71994022,0.00010958,2]
[323521185,1714066243181,-500.0,0.00010958,2]
[323521187,1714066243190,-500.0,0.00010958,2]
[323521189,1714066243199,-1858.12,0.00010958,2]
[323521192,1714066243208,-18372.56,0.00010958,2]
[323521194,1714066243218,-606.79,0.00010958,2]
[323521197,1714066243227,-522.15,0.00010958,2]
[323521200,1714066243237,-500.0,0.00010958,2]
[323521205,1714066243246,-500.0,0.00010958,2]
[323521210,1714066243255,-500.0,0.00010958,2]
[323521214,1714066243264,-817.91,0.00010958,2]
[323521218,1714066243273,-915.05,0.00010958,2]
[323521221,1714066243282,-500.0,0.00010958,2]
[323521223,1714066243292,-1882.87,0.00010958,2]
[323521225,1714066243301,-1106.06,0.00010958,2]
[323521226,1714066243310,-500.0,0.00010958,2]
[323521228,1714066243319,-3987.39,0.00010958,2]
[323521230,1714066243328,-500.0,0.00010958,2]
[323521233,1714066243337,-150.0,0.00010959,2]
[323521235,1714066243346,-749.63590295,0.00011,2]
[323521237,1714066243355,-46478.71663431,0.00011,2]
[323521239,1714066243365,-181.33015789,0.00011,2]
[323521241,1714066243375,-155.90864445,0.00011119,2]
[323521243,1714066243384,-500.0,0.00011231,2]
[323521245,1714066243394,-500.0,0.00011232,2]
[323521246,1714066243404,-500.0,0.00011232,2]
[323521247,1714066243414,-295.05,0.00011232,2]
[323521248,1714066243423,-585.12,0.00011232,2]
[323521249,1714066243432,-591.95,0.00011232,2]
[323521250,1714066243443,-500.0,0.00011232,2]
[323521251,1714066243452,-500.0,0.00011232,2]
[323521252,1714066243462,-500.0,0.00011232,2]
[323521253,1714066243471,-659.05,0.00011232,2]
[323521254,1714066243480,-500.0,0.00011232,2]
[323521255,1714066243490,-500.0,0.00011232,2]
[323521256,1714066243500,-500.0,0.00011232,2]
[323521257,1714066243509,-500.0,0.00011232,2]
[323521258,1714066243518,-500.0,0.00011232,2]
[323521259,1714066243528,-500.0,0.00011232,2]
[323521260,1714066243537,-500.0,0.00011232,2]
[323521261,1714066243547,-500.0,0.00011232,2]
[323521262,1714066243557,-500.0,0.00011232,2]
[323521263,1714066243566,-176.18202152,0.00011232,2]
[323521264,1714066243577,-500.0,0.00011232,2]
[323521265,1714066243586,-212.42,0.00011232,2]
[323521266,1714066243595,-601.53,0.00011232,2]
[323521267,1714066243605,-500.0,0.00011232,2]
[323521268,1714066243614,-577.2330181,0.00011232,2]
[323521269,1714066243623,-643.79,0.00011232,2]
[323521270,1714066243633,-500.0,0.00011232,2]
[323521271,1714066243643,-558.59,0.00011232,2]
[323521272,1714066243652,-500.0,0.00011232,2]
[323521273,1714066243662,-500.0,0.00011232,2]
[323521274,1714066243672,-787.64,0.00011232,2]
[323521275,1714066243681,-500.0,0.00011232,2]
[323521276,1714066243690,-500.0,0.00011232,2]
[323521277,1714066243699,-500.0,0.00011232,2]
[323521278,1714066243709,-580.55,0.00011232,2]
[323521279,1714066243719,-500.0,0.00011232,2]
[323521280,1714066243728,-550.04,0.00011232,2]
[323521281,1714066243736,-500.0,0.00011232,2]
[323521282,1714066243746,-426.21642286,0.00011232,2]
[323521283,1714066243756,-858.01,0.00011232,2]
[323521285,1714066243765,-635.99,0.00011232,2]
[323521286,1714066243774,-599.44,0.00011232,2]
[323521288,1714066243783,-500.0,0.00011232,2]
[323521289,1714066243792,-500.0,0.00011232,2]
[323521290,1714066243802,-500.0,0.00011232,2]
[323521291,1714066243812,-542.88,0.00011232,2]
[323521292,1714066243821,-703.44,0.00011232,2]
[323521293,1714066243830,-500.0,0.00011232,2]
[323521294,1714066243840,-876.33,0.00011232,2]
[323521295,1714066243850,-593.02,0.00011232,2]
[323521296,1714066243859,-500.0,0.00011232,2]
[323521297,1714066243868,-500.0,0.00011232,2]
[323521299,1714066243877,-500.0,0.00011232,2]
[323521300,1714066243887,-636.61,0.00011232,2]
[323521301,1714066243896,-500.0,0.00011232,2]
[323521302,1714066243906,-500.0,0.00011232,2]
[323521303,1714066243916,-500.0,0.00011232,2]
[323521304,1714066243926,-515.06,0.00011232,2]
[323521305,1714066243935,-500.0,0.00011232,2]
[323521306,1714066243945,-500.0,0.00011232,2]
[323521307,1714066243954,-560.25,0.00011232,2]
[323521308,1714066243964,-832.46,0.00011232,2]
[323521309,1714066243974,-500.0,0.00011232,2]
[323521310,1714066243984,-500.0,0.00011232,2]
[323521311,1714066243994,-500.0,0.00011232,2]
[323521312,1714066244010,-266.2619755,0.00011232,2]
[323521313,1714066244019,-500.0,0.00011232,2]
[323521314,1714066244032,-577.53,0.00011232,2]
[323521315,1714066244043,-500.0,0.00011232,2]
[323521316,1714066244053,-831.19,0.00011232,2]
[323521317,1714066244063,-500.0,0.00011232,2]
[323521318,1714066244074,-500.0,0.00011232,2]
[323521319,1714066244085,-500.0,0.00011232,2]
[323521320,1714066244094,-724.65,0.00011232,2]
[323521321,1714066244105,-500.0,0.00011232,2]
[323521322,1714066244115,-500.0,0.00011232,2]
[323521323,1714066244124,-500.0,0.00011232,2]
[323521324,1714066244134,-500.0,0.00011232,2]
[323521325,1714066244144,-500.0,0.00011232,2]
[323521326,1714066244154,-500.0,0.00011232,2]
[323521327,1714066244164,-500.0,0.00011232,2]
[323521328,1714066244173,-500.0,0.00011232,2]
[323521329,1714066244183,-500.0,0.00011232,2]
[323521330,1714066244192,-500.0,0.00011232,2]
[323521331,1714066244201,-500.0,0.00011232,2]
[323521332,1714066244211,-500.0,0.00011232,2]
[323521333,1714066244220,-500.0,0.00011232,2]
[323521334,1714066244229,-301.36192118,0.00011232,2]
[323521335,1714066244238,-500.0,0.00011232,2]
[323521336,1714066244247,-500.0,0.00011232,2]
[323521337,1714066244256,-500.0,0.00011232,2]
[323521338,1714066244266,-682.82,0.00011232,2]
[323521339,1714066244275,-500.0,0.00011232,2]
[323521340,1714066244285,-500.0,0.00011232,2]
[323521341,1714066244295,-549.21,0.00011232,2]
[323521342,1714066244304,-500.0,0.00011232,2]
[323521343,1714066244314,-870.29,0.00011232,2]
[323521344,1714066244323,-500.0,0.00011232,2]
[323521345,1714066244332,-558.54,0.00011232,2]
[323521346,1714066244341,-500.0,0.00011232,2]
[323521347,1714066244351,-601.71,0.00011232,2]
[323521348,1714066244360,-150.0,0.00011232,2]
[323521349,1714066244369,-500.0,0.00011232,2]
[323521350,1714066244379,-500.0,0.00011232,2]
[323521351,1714066244388,-500.0,0.00011232,2]
[323521352,1714066244397,-500.0,0.00011232,2]
[323521353,1714066244407,-539.34,0.00011232,2]
[323521354,1714066244416,-500.0,0.00011232,2]
[323521355,1714066244425,-500.0,0.00011232,2]
[323521356,1714066244435,-500.0,0.00011232,2]
[323521357,1714066244446,-567.35,0.00011232,2]
[323521358,1714066244455,-500.0,0.00011232,2]
[323521359,1714066244466,-500.0,0.00011232,2]
[323521360,1714066244476,-396.12675401,0.00011232,2]
[323521361,1714066244485,-500.0,0.00011232,2]
[323521362,1714066244494,-500.0,0.00011232,2]
[323521363,1714066244504,-500.0,0.00011232,2]
[323521364,1714066244515,-500.0,0.00011232,2]
[323521365,1714066244524,-500.0,0.00011232,2]
[323521366,1714066244535,-500.0,0.00011232,2]
[323521367,1714066244545,-500.0,0.00011232,2]
[323521368,1714066244555,-500.0,0.00011232,2]
[323521369,1714066244565,-500.0,0.00011232,2]
[323521370,1714066244574,-500.0,0.00011232,2]
[323521371,1714066244583,-500.0,0.00011232,2]
[323521372,1714066244594,-500.0,0.00011232,2]
[323521373,1714066244603,-610.4,0.00011232,2]
[323521374,1714066244613,-500.0,0.00011232,2]
[323521375,1714066244622,-500.0,0.00011232,2]
[323521376,1714066244631,-500.0,0.00011232,2]
[323521377,1714066244640,-681.48,0.00011232,2]
[323521378,1714066244649,-500.0,0.00011232,2]
[323521379,1714066244659,-700.14,0.00011232,2]
[323521380,1714066244668,-500.0,0.00011232,2]
[323521381,1714066244679,-500.0,0.00011232,2]
[323521382,1714066244689,-778.59,0.00011232,2]
[323521383,1714066244698,-763.12,0.00011232,2]
[323521384,1714066244708,-341.14392625,0.00011232,2]
[323521385,1714066244719,-500.0,0.00011232,2]
[323521386,1714066244729,-500.0,0.00011232,2]
[323521387,1714066244739,-500.0,0.00011232,2]
[323521388,1714066244749,-500.0,0.00011232,2]
[323521389,1714066244758,-1726.4,0.00011232,2]
[323521390,1714066244768,-500.0,0.00011232,2]
[323521391,1714066244777,-500.0,0.00011232,2]
[323521392,1714066244787,-1131.03,0.00011232,2]
[323521393,1714066244796,-7769.94,0.00011232,2]
[323521394,1714066244805,-500.0,0.00011232,2]
[323521395,1714066244815,-500.0,0.00011232,2]
[323521396,1714066244824,-932.29,0.00011232,2]
[323521397,1714066244834,-1063.54,0.00011232,2]
[323521398,1714066244843,-563.22,0.00011232,2]
[323521399,1714066244853,-1559.14,0.00011232,2]
[323521400,1714066244863,-500.0,0.00011232,2]
[323521401,1714066244872,-921.65,0.00011232,2]
[323521402,1714066244882,-500.0,0.00011232,2]
[323521403,1714066244891,-500.0,0.00011232,2]
[323521404,1714066244901,-8111.88,0.00011232,2]
[323521405,1714066244910,-500.0,0.00011232,2]
[323521406,1714066244920,-500.0,0.00011232,2]
[323521407,1714066244929,-1147.57,0.00011232,2]
[323521408,1714066244938,-500.0,0.00011232,2]
[323521409,1714066244947,-738.32,0.00011232,2]
[323521410,1714066244956,-5680.8,0.00011232,2]
[323521411,1714066244965,-609.61,0.00011232,2]
[323521412,1714066244974,-500.0,0.00011232,2]
[323521413,1714066244983,-1001.25,0.00011232,2]
[323521414,1714066244992,-500.0,0.00011232,2]
[323521415,1714066245005,-500.0,0.00011232,2]
[323521416,1714066245015,-500.0,0.00011232,2]
[323521417,1714066245025,-789.64,0.00011232,2]
[323521418,1714066245035,-500.0,0.00011232,2]
[323521419,1714066245046,-500.0,0.00011232,2]
[323521420,1714066245055,-632.8,0.00011232,2]
[323521421,1714066245065,-500.0,0.00011232,2]
[323521422,1714066245074,-601.55,0.00011232,2]
[323521423,1714066245083,-500.0,0.00011232,2]
[323521424,1714066245093,-500.0,0.00011232,2]
[323521425,1714066245102,-500.0,0.00011232,2]
[323521426,1714066245112,-500.0,0.00011232,2]
[323521427,1714066245121,-500.0,0.00011232,2]
[323521428,1714066245133,-20821.34,0.00011232,2]
[323521429,1714066245144,-823.59,0.00011232,2]
[323521430,1714066245154,-1235.43,0.00011232,2]
[323521431,1714066245164,-500.0,0.00011232,2]
[323521432,1714066245173,-567.43,0.00011232,2]
[323521433,1714066245183,-500.0,0.00011232,2]
[323521434,1714066245193,-656.83,0.00011232,2]
[323521435,1714066245203,-500.0,0.00011232,2]
[323521436,1714066245212,-500.0,0.00011232,2]
[323521437,1714066245222,-681.03,0.00011232,2]
[323521438,1714066245232,-635.37,0.00011232,2]
[323521439,1714066245241,-590.61,0.00011232,2]
[323521440,1714066245250,-574.3,0.00011232,2]
[323521441,1714066245260,-2654.12,0.00011232,2]
[323521442,1714066245270,-2024.77,0.00011232,2]
[323521443,1714066245280,-1309.2,0.00011232,2]
[323521444,1714066245291,-1012.69,0.00011232,2]
[323521445,1714066245301,-696.55,0.00011232,2]
[323521446,1714066245311,-500.0,0.00011232,2]
[323521447,1714066245320,-500.0,0.00011232,2]
[323521448,1714066245329,-500.0,0.00011232,2]
[323521449,1714066245339,-974.67,0.00011232,2]
[323521450,1714066245348,-500.0,0.00011232,2]
[323521451,1714066245358,-577.32,0.00011232,2]
[323521452,1714066245367,-2848.61,0.00011232,2]
[323521453,1714066245376,-848.28,0.00011232,2]
[323521454,1714066245386,-745.83,0.00011232,2]
[323521455,1714066245395,-500.0,0.00011232,2]
[323521456,1714066245404,-1052.25,0.00011232,2]
[323521457,1714066245413,-3334.64,0.00011232,2]
[323521458,1714066245422,-570.39,0.00011232,2]
[323521459,1714066245431,-1355.35,0.00011232,2]
[323521460,1714066245440,-500.0,0.00011232,2]
[323521461,1714066245450,-3830.47,0.00011232,2]
[323521462,1714066245459,-500.0,0.00011232,2]
[323521463,1714066245469,-500.0,0.00011232,2]
[323521464,1714066245478,-568.19,0.00011232,2]
[323521465,1714066245487,-573.82,0.00011232,2]
[323521466,1714066245496,-652.82,0.00011232,2]
[323521467,1714066245508,-500.0,0.00011232,2]
[323521468,1714066245520,-500.0,0.00011232,2]
[323521469,1714066245529,-500.0,0.00011232,2]
[323521470,1714066245538,-677.0,0.00011232,2]
[323521471,1714066245548,-500.0,0.00011232,2]
[323521472,1714066245557,-500.0,0.00011232,2]
[323521473,1714066245565,-3394.66,0.00011232,2]
[323521474,1714066245575,-2691.47,0.00011232,2]
[323521475,1714066245585,-500.0,0.00011232,2]
[323521476,1714066245594,-500.0,0.00011232,2]
[323521477,1714066245603,-1310.34,0.00011232,2]
[323521478,1714066245612,-617.6,0.00011232,2]
[323521479,1714066245621,-589.35,0.00011232,2]
[323521480,1714066245630,-2968.74,0.00011232,2]
[323521481,1714066245639,-500.0,0.00011232,2]
[323521482,1714066245650,-615.59,0.00011232,2]
[323521483,1714066245660,-2047.53,0.00011232,2]
[323521484,1714066245669,-500.0,0.00011232,2]
[323521485,1714066245678,-3798.41,0.00011232,2]
[323521486,1714066245687,-552.87,0.00011232,2]
[323521487,1714066245697,-500.0,0.00011232,2]
[323521488,1714066245707,-851.95,0.00011232,2]
[323521489,1714066245716,-500.0,0.00011232,2]
[323521490,1714066245726,-1098.79,0.00011232,2]
[323521491,1714066245736,-877.56,0.00011232,2]
[323521492,1714066245745,-589.29,0.00011232,2]
[323521493,1714066245755,-500.0,0.00011232,2]
[323521494,1714066245764,-673.93,0.00011232,2]
[323521495,1714066245774,-500.0,0.00011232,2]
[323521496,1714066245784,-1673.42,0.00011232,2]
[323521497,1714066245793,-1291.49,0.00011232,2]
[323521498,1714066245803,-500.0,0.00011232,2]
[323521499,1714066245813,-1827.2,0.00011232,2]
[323521500,1714066245823,-558.66,0.00011232,2]
[323521501,1714066245832,-500.0,0.00011232,2]
[323521502,1714066245842,-724.24,0.00011232,2]
[323521503,1714066245852,-500.0,0.00011232,2]
[323521504,1714066245862,-3769.61,0.00011232,2]
[323521505,1714066245871,-500.0,0.00011232,2]
[323521506,1714066245881,-702.09,0.00011232,2]
[323521507,1714066245891,-824.42,0.00011232,2]
[323521508,1714066245901,-500.0,0.00011232,2]
[323521509,1714066245911,-500.0,0.00011232,2]
[323521510,1714066245921,-2099.47,0.00011232,2]
[323521511,1714066245931,-1261.32,0.00011232,2]
[323521512,1714066245940,-500.0,0.00011232,2]
[323521513,1714066245951,-2376.25,0.00011232,2]
[323521514,1714066245961,-606.43,0.00011232,2]
[323521515,1714066245972,-1105.1,0.00011232,2]
[323521516,1714066245981,-5195.18,0.00011232,2]
[323521517,1714066245990,-972.6,0.00011232,2]
[323521518,1714066246002,-500.0,0.00011232,2]
[323521519,1714066246011,-500.0,0.00011232,2]
[323521520,1714066246021,-1462.05,0.00011232,2]
[323521521,1714066246030,-652.46,0.00011232,2]
[323521522,1714066246041,-871.16,0.00011232,2]
[323521524,1714066246051,-680.41,0.00011232,2]
[323521525,1714066246059,-642.3,0.00011232,2]
[323521526,1714066246068,-688.69,0.00011232,2]
[323521527,1714066246079,-500.0,0.00011232,2]
[323521528,1714066246089,-2663.02,0.00011232,2]
[323521529,1714066246098,-500.0,0.00011232,2]
[323521531,1714066246108,-500.0,0.00011232,2]
[323521533,1714066246117,-500.0,0.00011232,2]
[323521535,1714066246128,-500.0,0.00011232,2]
[323521536,1714066246137,-500.0,0.00011232,2]
[323521537,1714066246146,-1858.12,0.00011232,2]
[323521538,1714066246156,-18372.56,0.00011232,2]
[323521540,1714066246167,-606.79,0.00011232,2]
[323521541,1714066246175,-522.15,0.00011232,2]
[323521542,1714066246185,-622.83,0.00011232,2]
[323521543,1714066246196,-817.91,0.00011232,2]
[323521544,1714066246206,-915.05,0.00011232,2]
[323521545,1714066246215,-500.0,0.00011232,2]
[323521546,1714066246225,-1882.87,0.00011232,2]
[323521547,1714066246234,-1106.06,0.00011232,2]
[323521548,1714066246244,-500.0,0.00011232,2]
[323521549,1714066246255,-3987.39,0.00011232,2]
[323521550,1714066246264,-500.0,0.00011232,2]
[323521551,1714066246274,-1000.0,0.0001133,2]
[323521552,1714066246284,-706.29641948,0.00011345,2]
[323521553,1714066246294,-161.4,0.00011356,2]
[323521554,1714066246304,-356.13,0.0001137,2]
[323521555,1714066246314,-155.90864445,0.00011379,2]
[323521556,1714066246323,-500.0,0.00011506,2]
[323521557,1714066246332,-500.0,0.00011506,2]
[323521558,1714066246342,-585.12,0.00011506,2]
[323521559,1714066246351,-591.95,0.00011506,2]
[323521560,1714066246360,-500.0,0.00011506,2]
[323521561,1714066246370,-500.0,0.00011506,2]
[323521562,1714066246379,-366.116889,0.00011506,2]
[323521563,1714066246388,-659.05,0.00011506,2]
[323521564,1714066246397,-243.31099376,0.00011506,2]
[323521565,1714066246406,-564.02245961,0.00011506,2]
[323521566,1714066246416,-500.0,0.00011506,2]
[323521567,1714066246426,-500.0,0.00011506,2]
[323521568,1714066246436,-500.0,0.00011506,2]
[323521569,1714066246445,-500.0,0.00011506,2]
[323521570,1714066246455,-500.0,0.00011506,2]
[323521571,1714066246466,-500.0,0.00011506,2]
[323521572,1714066246476,-500.0,0.00011506,2]
[323521573,1714066246485,-500.0,0.00011506,2]
[323521574,1714066246494,-601.53,0.00011506,2]
[323521575,1714066246503,-500.0,0.00011506,2]
[323521576,1714066246513,-643.79,0.00011506,2]
[323521577,1714066246522,-500.0,0.00011506,2]
[323521578,1714066246531,-558.59,0.00011506,2]
[323521579,1714066246542,-500.0,0.00011506,2]
[323521580,1714066246551,-500.0,0.00011506,2]
[323521581,1714066246561,-787.64,0.00011506,2]
[323521582,1714066246747,-500.0,0.00011506,2]
[323521583,1714066246757,-500.0,0.00011506,2]
[323521584,1714066246766,-500.0,0.00011506,2]
[323521585,1714066246775,-580.55,0.00011506,2]
[323521586,1714066246785,-500.0,0.00011506,2]
[323521587,1714066246794,-550.04,0.00011506,2]
[323521588,1714066246803,-500.0,0.00011506,2]
[323521589,1714066246812,-858.01,0.00011506,2]
[323521590,1714066246822,-635.99,0.00011506,2]
[323521591,1714066246830,-599.44,0.00011506,2]
[323521592,1714066246839,-500.0,0.00011506,2]
[323521593,1714066246848,-500.0,0.00011506,2]
[323521594,1714066246858,-542.88,0.00011506,2]
[323521595,1714066246867,-703.44,0.00011506,2]
[323521596,1714066246876,-876.33,0.00011506,2]
[323521597,1714066246885,-593.02,0.00011506,2]
[323521598,1714066246894,-500.0,0.00011506,2]
[323521599,1714066246904,-500.0,0.00011506,2]
[323521600,1714066246914,-636.61,0.00011506,2]
[323521601,1714066246924,-500.0,0.00011506,2]
[323521602,1714066246934,-515.06,0.00011506,2]
[323521603,1714066246943,-500.0,0.00011506,2]
[323521604,1714066246952,-500.0,0.00011506,2]
[323521605,1714066246962,-560.25,0.00011506,2]
[323521606,1714066246972,-832.46,0.00011506,2]
[323521607,1714066246981,-500.0,0.00011506,2]
[323521608,1714066246991,-500.0,0.00011506,2]
[323521609,1714066247003,-500.0,0.00011506,2]
[323521610,1714066247013,-500.0,0.00011506,2]
[323521611,1714066247023,-577.53,0.00011506,2]
[323521612,1714066247033,-500.0,0.00011506,2]
[323521613,1714066247044,-831.19,0.00011506,2]
[323521614,1714066247055,-500.0,0.00011506,2]
[323521615,1714066247065,-500.0,0.00011506,2]
[323521616,1714066247074,-724.65,0.00011506,2]
[323521617,1714066247084,-500.0,0.00011506,2]
[323521618,1714066247094,-500.0,0.00011506,2]
[323521619,1714066247103,-500.0,0.00011506,2]
[323521620,1714066247112,-500.0,0.00011506,2]
[323521621,1714066247122,-500.0,0.00011506,2]
[323521622,1714066247132,-500.0,0.00011506,2]
[323521623,1714066247142,-500.0,0.00011506,2]
[323521624,1714066247151,-500.0,0.00011506,2]
[323521625,1714066247161,-500.0,0.00011506,2]
[323521626,1714066247170,-500.0,0.00011506,2]
[323521627,1714066247180,-500.0,0.00011506,2]
[323521628,1714066247190,-500.0,0.00011506,2]
[323521629,1714066247199,-500.0,0.00011506,2]
[323521630,1714066247209,-500.0,0.00011506,2]
[323521631,1714066247221,-682.82,0.00011506,2]
[323521632,1714066247230,-500.0,0.00011506,2]
[323521633,1714066247238,-500.0,0.00011506,2]
[323521634,1714066247247,-549.21,0.00011506,2]
[323521635,1714066247256,-870.29,0.00011506,2]
[323521636,1714066247265,-500.0,0.00011506,2]
[323521637,1714066247274,-558.54,0.00011506,2]
[323521638,1714066247283,-500.0,0.00011506,2]
[323521639,1714066247292,-601.71,0.00011506,2]
[323521640,1714066247302,-150.0,0.00011506,2]
[323521641,1714066247311,-500.0,0.00011506,2]
[323521642,1714066247320,-500.0,0.00011506,2]
[323521643,1714066247329,-500.0,0.00011506,2]
[323521644,1714066247338,-500.0,0.00011506,2]
[323521645,1714066247347,-539.34,0.00011506,2]
[323521646,1714066247357,-500.0,0.00011506,2]
[323521647,1714066247366,-500.0,0.00011506,2]
[323521648,1714066247375,-500.0,0.00011506,2]
[323521649,1714066247384,-567.35,0.00011506,2]
[323521650,1714066247426,-500.0,0.00011506,2]
[323521651,1714066247435,-500.0,0.00011506,2]
[323521652,1714066247446,-500.0,0.00011506,2]
[323521653,1714066247457,-500.0,0.00011506,2]
[323521654,1714066247467,-500.0,0.00011506,2]
[323521655,1714066247478,-500.0,0.00011506,2]
[323521656,1714066247488,-500.0,0.00011506,2]
[323521657,1714066247499,-500.0,0.00011506,2]
[323521658,1714066247509,-500.0,0.00011506,2]
[323521659,1714066247519,-500.0,0.00011506,2]
[323521660,1714066247530,-500.0,0.00011506,2]
[323521661,1714066247539,-610.4,0.00011506,2]
[323521662,1714066247550,-500.0,0.00011506,2]
[323521663,1714066247560,-500.0,0.00011506,2]
[323521664,1714066247570,-500.0,0.00011506,2]
[323521665,1714066247580,-681.48,0.00011506,2]
[323521666,1714066247590,-700.14,0.00011506,2]
[323521667,1714066247600,-260.00035421,0.00011506,2]
[323521668,1714066247610,-778.59,0.00011506,2]
[323521669,1714066247619,-763.12,0.00011506,2]
[323521670,1714066247629,-500.0,0.00011506,2]
[323521671,1714066247640,-500.0,0.00011506,2]
[323521672,1714066247651,-500.0,0.00011506,2]
[323521673,1714066247661,-1726.4,0.00011506,2]
[323521674,1714066247672,-500.0,0.00011506,2]
[323521675,1714066247682,-500.0,0.00011506,2]
[323521676,1714066247691,-1131.03,0.00011506,2]
[323521677,1714066247700,-7769.94,0.00011506,2]
[323521678,1714066247710,-648.15221196,0.00011506,2]
[323521679,1714066247721,-932.29,0.00011506,2]
[323521680,1714066247730,-1063.54,0.00011506,2]
[323521681,1714066247740,-563.22,0.00011506,2]
[323521682,1714066247751,-1559.14,0.00011506,2]
[323521683,1714066247761,-500.0,0.00011506,2]
[323521684,1714066247772,-921.65,0.00011506,2]
[323521685,1714066247782,-500.0,0.00011506,2]
[323521686,1714066247793,-500.0,0.00011506,2]
[323521687,1714066247802,-8111.88,0.00011506,2]
[323521688,1714066247811,-500.0,0.00011506,2]